[Event "7th Ali Ipek Memorial 2019"]
[Site "Ankara"]
[Date "2019.03.10"]
[Round "7.1"]
[White "Taspinar, Yanki"]
[Black "Alkan, Omer Tarik"]
[Result "1-0"]
[ECO "B90"]
[WhiteElo "1792"]
[BlackElo "1720"]
[Annotator "NA"]
[PlyCount "89"]
[EventDate "2019.03.06"]
[EventType "swiss"]
[EventCountry "TUR"]
[SourceTitle "playchess.com"]
[Source "ChessBase"]
[SourceQuality "1"]
[TimeControl "5400+30"]

1. e4 {[%emt 0:00:30]} c5 {[%emt 0:00:30]} 2. Nf3 {[%emt 0:00:00]} d6 {[%emt 0:00:00]} 3. d4 {[%emt 0:00:00]} cxd4 {[%emt 0:00:00]} 4. Nxd4 {[%emt 0:00:30]} Nf6 {[%emt 0:00:30]} 5. Nc3 {[%emt 0:00:30]} a6 {[%emt 0:00:00]} 6. Be3 {[%emt 0:00:00]} e5 {[%emt 0:00:00]} 7. Nb3 {[%emt 0:00:00]} Be6 {[%emt 0:00:30]} 8. f3 {[%emt 0:00:30]} Be7 {[%emt 0:00:00]} 9. Qd2 {[%emt 0:00:00]} b5 {[%emt 0:00:00]} 10. O-O-O {[%emt 0:00:00]} Nbd7 {[%emt 0:00:00]} 11. g4 {[%emt 0:00:00]} O-O {[%emt 0:00:00]} 12. g5 {[%emt 0:00:00]} b4 {[%emt 0:00:30]} 13. Na4 {[%emt 0:00:00]} Nh5 {[%emt 0:01:30]} 14. Qxb4 {[%emt 0:00:00]} d5 {[%emt 0:04:30]} 15. Bc5 {[%emt 0:09:30]} Nxc5 {[%emt 0:01:30]} 16. Naxc5 {[%emt 0:03:30]} Rb8 {[%emt 0:05:30]} 17. Nxe6 {[%emt 0:03:30]} fxe6 {[%emt 0:00:30]} 18. Qa4 {[%emt 0:06:30]} Rxf3 {[%emt 0:04:30]} 19. Be2 {[%emt 0:05:30]} Rh3 {[%emt 0:00:30]} 20. Bg4 {[%emt 0:00:30]} Rb4 {[%emt 0:02:30]} 21. Qc6 {[%emt 0:08:30]} Rb6 {[%emt 0:01:30]} 22. Bxe6+ {[%emt 0:02:30]} Kf8 {[%emt 0:00:00]} 23. Qxd5 {[%emt 0:07:30]} Rd6 {[%emt 0:01:00]} 24. Rdf1+ {[%emt 0:01:30]} Nf4 {[%emt 0:00:30]} 25. Rxf4+ {[%emt 0:10:30]} exf4 {[%emt 0:00:30]} 26. Qf5+ {[%emt 0:00:30]} Bf6 {[%emt 0:00:30]} 27. Qxh3 {[%emt 0:00:30]} Bxg5 {[%emt 0:02:30]} 28. Qf5+ {[%emt 0:00:30]} Qf6 {[%emt 0:00:30]} 29. Qxf6+ {[%emt 0:01:30]} gxf6 {[%emt 0:00:30]} 30. Bc4 {[%emt 0:06:30]} f3+ {[%emt 0:00:30]} 31. Kb1 {[%emt 0:00:30]} f2 {[%emt 0:01:30]} 32. Rf1 {[%emt 0:00:30]} f5 {[%emt 0:00:30]} 33. exf5 {[%emt 0:00:30]} Be3 {[%emt 0:01:30]} 34. c3 {[%emt 0:02:30]} Rh6 {[%emt 0:00:00]} 35. Kc2 {[%emt 0:02:30]} Rxh2 {[%emt 0:00:00]} 36. Bxa6 {[%emt 0:00:30]} h5 {[%emt 0:00:30]} 37. Kd3 {[%emt 0:00:30]} Rh3 {[%emt 0:00:30]} 38. Ke2 {[%emt 0:00:00]} h4 {[%emt 0:00:30]} 39. Nd2 {[%emt 0:01:00]} Ba7 {[%emt 0:01:30]} 40. Nf3 {[%emt 0:00:30]} Ke7 {[%emt 0:02:30]} 41. Nd4 {[%emt 0:00:30]} Kf6 {[%emt 0:00:00]} 42. Rxf2 {[%emt 0:01:30]} Rh1 {[%emt 0:00:00]} 43. Bb7 {[%emt 0:01:30]} Rb1 {[%emt 0:00:30]} 44. Kd3 {[%emt 0:01:30]} Kg5 {[%emt 0:00:30]} 45. f6 {[%emt 0:00:30]} 1-0

[Event "7th Ali Ipek Memorial 2019"]
[Site "Ankara"]
[Date "2019.03.10"]
[Round "7.2"]
[White "Sekerci, Berkin"]
[Black "Guven, Oguz Kaan"]
[Result "0-1"]
[ECO "B06"]
[WhiteElo "1711"]
[BlackElo "2096"]
[Annotator "NA"]
[PlyCount "154"]
[EventDate "2019.03.06"]
[EventType "swiss"]
[EventCountry "TUR"]
[SourceTitle "playchess.com"]
[Source "ChessBase"]
[SourceQuality "1"]
[TimeControl "5400+30"]

1. e4 {[%emt 0:00:30]} g6 {[%emt 0:00:30]} 2. d4 {[%emt 0:00:30]} Bg7 {[%emt 0:00:30]} 3. Nc3 {[%emt 0:00:30]} d6 {[%emt 0:00:00]} 4. Be3 {[%emt 0:00:00]} a6 {[%emt 0:00:00]} 5. a4 {[%emt 0:00:00]} b6 {[%emt 0:00:00]} 6. Qd2 {[%emt 0:00:30]} Bb7 {[%emt 0:00:00] B06: Modern Defence} 7. Bd3 {[%emt 0:02:30]} (7. h4 Nf6 8. f3 Nc6 9. g4 h6 10. Nge2 e6 11. Bh3 Qe7 12. g5 hxg5 13. Bxg5 Qd7 14. O-O-O {1-0 (28) Naiditsch,A (2697)-Shoker,S (2475) Brest 2018}) 7... Nd7 {[%emt 0:00:30]} 8. Nf3 {[%emt 0:00:30]} c5 {[%emt 0:00:00]} 9. O-O {[%emt 0:02:30]} cxd4 {[%emt 0:07:00]} 10. Nxd4 {[%emt 0:05:30]} Ngf6 {[%emt 0:00:00]} 11. f3 {[%emt 0:04:30]} O-O {[%emt 0:00:00]} 12. Rad1 $146 {[%emt 0:02:30]} ({Predecessor:} 12. Nce2 d5 13. exd5 Nxd5 14. Bf2 {0-1 (26) Pflug,M (2256)-Hornung,H (2163) Augsburg 2001}) 12... Qc7 {[%emt 0:02:30]} 13. Rfe1 {[%emt 0:03:30]} Rfe8 {[%emt 0:03:30]} 14. Bf1 {[%emt 0:02:30]} Rac8 {[%emt 0:07:30]} 15. Nb3 {[%emt 0:02:30]} Nc5 {[%emt 0:02:30]} 16. Nxc5 {[%emt 0:10:30]} bxc5 {[%emt 0:00:30]} 17. Bc4 {[%emt 0:00:30]} Qa5 {[%emt 0:04:30]} 18. Nd5 {[%emt 0:08:30]} Qxd2 {[%emt 0:00:30]} 19. Rxd2 {[%emt 0:01:30]} Rb8 {[%emt 0:09:30]} 20. c3 {[%emt 0:01:30]} Nxd5 {[%emt 0:01:30]} 21. exd5 {[%emt 0:00:30]} Bc8 {[%emt 0:03:30]} 22. a5 {[%emt 0:01:30]} Bd7 {[%emt 0:01:30]} 23. Bf4 {[%emt 0:01:30]} Bf6 {[%emt 0:03:30]} 24. Rde2 {[%emt 0:03:30]} Red8 {[%emt 0:01:30]} 25. Ra1 {[%emt 0:12:30]} Bb5 {[%emt 0:00:30]} 26. Bxb5 {[%emt 0:00:30]} Rxb5 {[%emt 0:00:00]} 27. Kf1 {[%emt 0:00:30]} Rdb8 {[%emt 0:02:00]} 28. Ra2 {[%emt 0:00:30]} Kg7 {[%emt 0:04:30]} 29. Ke1 {[%emt 0:01:30]} g5 {[%emt 0:00:30]} 30. Bc1 {[%emt 0:02:30]} c4 {[%emt 0:02:30]} 31. Re4 {[%emt 0:03:30]} Rc8 {[%emt 0:01:30]} 32. Ra4 {[%emt 0:00:30]} Rxd5 {[%emt 0:00:30]} 33. Rexc4 {[%emt 0:00:30]} Rxc4 {[%emt 0:00:30]} 34. Rxc4 {[%emt 0:00:30]} Rxa5 {[%emt 0:00:30]} 35. Kd1 {[%emt 0:00:30]} Kg6 {[%emt 0:00:30]} 36. Kc2 {[%emt 0:00:30]} Re5 {[%emt 0:00:30]} 37. Ra4 {[%emt 0:00:30]} Re2+ {[%emt 0:00:30]} 38. Kd3 {[%emt 0:00:30]} Rxg2 {[%emt 0:00:30]} 39. Rxa6 {[%emt 0:00:30]} Rxh2 {[%emt 0:00:30]} 40. b4 {[%emt 0:00:30]} Rf2 {[%emt 0:00:30]} 41. b5 {[%emt 0:00:30]} Rf1 {[%emt 0:08:30]} 42. Be3 {[%emt 0:06:30]} Rb1 {[%emt 0:00:00]} ({Don't go for} 42... Rxf3 $2 43. b6 $18) 43. b6 {[%emt 0:00:58]} Rb3 {[%emt 0:01:00]} 44. Kc4 {[%emt 0:04:57]} Rxc3+ {[%emt 0:00:30]} 45. Kb4 {[%emt 0:00:00] [#]} Rc2 $1 {[%emt 0:04:30]} ({Stronger than} 45... Rxe3 46. b7 $11) 46. Kb5 {[%emt 0:02:50]} Be5 {[%emt 0:02:30]} 47. b7 {[%emt 0:00:37]} Rb2+ {[%emt 0:01:30]} 48. Kc6 {[%emt 0:00:07]} d5 {[%emt 0:00:00]} 49. Kd7+ {[%emt 0:01:21]} Kf5 {[%emt 0:01:00]} 50. Rb6 {[%emt 0:00:15]} Re2 {[%emt 0:08:40]} 51. Bc5 {[%emt 0:01:17]} d4 {[%emt 0:04:47]} (51... h5 $11) 52. Bd6 {[%emt 0:00:56]} Bxd6 {[%emt 0:00:30]} 53. Rxd6 {[%emt 0:00:30]} Rb2 {[%emt 0:00:30]} 54. Rd5+ {[%emt 0:00:30]} Kf4 {[%emt 0:00:00]} 55. Kc7 {[%emt 0:00:26]} e5 {[%emt 0:01:14]} 56. Kc6 {[%emt 0:00:55]} Rxb7 {[%emt 0:00:02]} 57. Kxb7 {[%emt 0:00:25]} h5 {[%emt 0:01:06]} 58. Kc6 {[%emt 0:00:37]} h4 {[%emt 0:00:22]} 59. Rd7 {[%emt 0:01:18]} Kxf3 {[%emt 0:07:57]} 60. Kd5 {[%emt 0:02:12]} d3 {[%emt 0:06:43]} 61. Kxe5 {[%emt 0:05:50]} Ke3 {[%emt 0:01:26]} 62. Kf5 {[%emt 0:02:28] [#]} h3 $1 {[%emt 0:00:17]} 63. Rxf7 {[%emt 0:00:55]} d2 {[%emt 0:01:06]} 64. Rh7 {[%emt 0:00:17]} d1=Q {[%emt 0:00:37]} 65. Rxh3+ {[%emt 0:00:00]} Kd4 {[%emt 0:00:00]} 66. Kxg5 {[%emt 0:00:00]} Ke4 {[%emt 0:00:00]} 67. Rg3 {[%emt 0:00:49]} Qd6 {[%emt 0:00:27]} 68. Kh4 {[%emt 0:01:01]} Qh6+ {[%emt 0:01:10]} 69. Kg4 {[%emt 0:00:30]} Qe6+ {[%emt 0:00:08]} 70. Kh5 {[%emt 0:00:22]} Kf4 {[%emt 0:00:52]} 71. Rg7 {[%emt 0:00:30]} Qe8+ {[%emt 0:00:30]} 72. Kh6 {[%emt 0:00:18]} Kf5 {[%emt 0:00:21]} 73. Rf7+ {[%emt 0:00:02]} Ke6 {[%emt 0:00:15]} 74. Rf3 {[%emt 0:00:56]} Qc6 {[%emt 0:00:47]} 75. Re3+ {[%emt 0:01:31]} Kf5+ {[%emt 0:00:50]} 76. Kg7 {[%emt 0:00:30]} Qf6+ {[%emt 0:00:30]} 77. Kh7 {[%emt 0:00:30]} Qg6+ {[%emt 0:00:00]} 0-1

[Event "7th Ali Ipek Memorial 2019"]
[Site "Ankara"]
[Date "2019.03.10"]
[Round "7.4"]
[White "Cevizci, Yusuf Baran"]
[Black "Buker, Muhittin"]
[Result "0-1"]
[ECO "C47"]
[WhiteElo "1691"]
[BlackElo "2009"]
[Annotator "NA"]
[PlyCount "56"]
[EventDate "2019.03.06"]
[EventType "swiss"]
[EventCountry "TUR"]
[SourceTitle "playchess.com"]
[Source "ChessBase"]
[SourceQuality "1"]
[TimeControl "5400+30"]

{[%evp 17,48,-14,36,16,21,-8,21,9,32767,32767,32767,32767,-16,-28,-38,-50,-40,-41,-29,-58,-18,-20,-20,-59,-64,-70,-41,32767,-30,-31,32767,32767,-32]} 1. e4 {[%emt 0:00:30]} e5 {[%emt 0:00:30]} 2. Nf3 {[%emt 0:00:30]} Nc6 {[%emt 0:00:00]} 3. Nc3 {[%emt 0:00:00]} Nf6 {[%emt 0:00:00]} 4. Be2 {[%emt 0:00:00]} Bc5 {[%emt 0:01:30]} 5. Nxe5 {[%emt 0:00:30]} Nxe5 {[%emt 0:00:30]} 6. d4 {[%emt 0:00:30]} Bd6 {[%emt 0:01:30] C47: Scotch Four Knights and Four Knights with 4 g3} 7. dxe5 {[%emt 0:00:30]} Bxe5 {[%emt 0:00:00]} 8. Nb5 {[%emt 0:00:30]} d5 $146 {[%emt 0:27:00]} ({Predecessor:} 8... O-O 9. f4 Nxe4 10. Qd5 Bf6 11. Qxe4 Re8 12. Qf3 a6 13. Nc3 Bxc3+ 14. bxc3 Qe7 15. Bd2 d5 16. O-O {1-0 (16) Grischuk,A (2779)-Ponomariov,R (2743) Khanty-Mansiysk 2013}) 9. exd5 $2 {[%emt 0:15:30]} ({White must play} 9. f4 $16 Nxe4 10. fxe5 Qh4+ 11. g3 Nxg3 12. Bg5 (12. hxg3 Qxh1+ 13. Kd2 Qh6+ 14. Ke1 Qh1+ 15. Kd2 Qh6+ 16. Ke1 Qh1+ 17. Kd2 $11) (12. Nxc7+ Kf8 $16) 12... Qxg5 13. Rg1 {[%mdl 64] Pin} (13. Nxc7+ Kf8 $14) (13. Qxd5 Nxh1 14. Nxc7+ {[%mdl 64] Double Attack} Kf8 $14) 13... Qxe5 14. Rxg3) 9... Nxd5 {[%emt 0:04:30]} 10. c4 {[%emt 0:01:30]} Nf4 {[%emt 0:01:30]} 11. Qxd8+ {[%emt 0:00:30]} Kxd8 {[%emt 0:00:30]} 12. Bxf4 $1 {[%emt 0:00:00]} Bxf4 {[%emt 0:00:30]} 13. Rd1+ {[%emt 0:00:00]} Ke7 {[%emt 0:01:30]} 14. g3 {[%emt 0:00:30]} Be5 {[%emt 0:01:30]} 15. f4 {[%emt 0:00:30]} a6 {[%emt 0:00:30]} 16. Nd4 {[%emt 0:02:30]} Bf6 {[%emt 0:01:30]} 17. b3 {[%emt 0:03:30]} Rd8 {[%emt 0:00:30]} 18. Nc2 {[%emt 0:00:30]} Bf5 {[%emt 0:00:30]} 19. Ne3 {[%emt 0:02:30]} Be4 {[%emt 0:00:30]} 20. Rf1 {[%emt 0:02:30]} Rxd1+ {[%emt 0:01:30]} 21. Nxd1 {[%emt 0:01:30]} c6 {[%emt 0:04:30]} 22. Bf3 {[%emt 0:00:30]} Bb1 {[%emt 0:05:30]} 23. Rf2 {[%emt 0:01:30]} Rd8 {[%emt 0:03:30]} 24. Re2+ {[%emt 0:00:30]} Kd6 $15 {[%emt 0:00:30]} 25. Be4 {[%emt 0:00:30]} Bxe4 {[%emt 0:00:30]} 26. Rxe4 {[%emt 0:00:00]} Kc5 {[%emt 0:00:30]} 27. g4 {[%emt 0:04:00]} Rd4 {[%emt 0:11:30]} 28. Nc3 {[%emt 0:06:30]} Kb4 {[%emt 0:04:30]} 0-1

[Event "7th Ali Ipek Memorial 2019"]
[Site "Ankara"]
[Date "2019.03.10"]
[Round "7.5"]
[White "Severcan, Sedat Sabri"]
[Black "Soku, Mustafa Attila"]
[Result "1-0"]
[ECO "B14"]
[WhiteElo "1927"]
[BlackElo "1497"]
[Annotator "NA"]
[PlyCount "93"]
[EventDate "2019.03.06"]
[EventType "swiss"]
[EventCountry "TUR"]
[SourceTitle "playchess.com"]
[Source "ChessBase"]
[SourceQuality "1"]
[TimeControl "5400+30"]

1. c4 {[%emt 0:00:30]} g6 {[%emt 0:00:30]} 2. Nc3 {[%emt 0:00:30]} Bg7 {[%emt 0:00:00]} 3. d4 {[%emt 0:00:00]} c5 {[%emt 0:01:00]} 4. e3 {[%emt 0:00:00]} cxd4 {[%emt 0:02:30]} 5. exd4 {[%emt 0:00:30]} Nf6 {[%emt 0:00:30]} 6. Nf3 {[%emt 0:00:30]} O-O {[%emt 0:00:30]} 7. h3 {[%emt 0:00:00]} d5 {[%emt 0:00:30]} 8. c5 {[%emt 0:06:00] B14: Caro-Kann: Panov-Botvinnik Attack with 5...e6 and 5...g6} (8. Be2 dxc4 9. Bxc4 a6 10. a4 Nc6 11. O-O b6 12. d5 Nb4 13. Qb3 a5 14. Be3 Bb7 15. Rfd1 Rc8 16. Rac1 Nd7 17. Ne4 h6 18. Bd2 Rxc4 19. Rxc4 Nxd5 20. Bxa5 {1-0 (43) Galopoulos,N (2356)-Navara,D (2736) Skopje 2018}) 8... Nc6 {[%emt 0:03:30]} 9. Bb5 {[%emt 0:01:30]} Bf5 {[%emt 0:00:30]} 10. Bxc6 {[%emt 0:02:30]} bxc6 {[%emt 0:03:30]} 11. Ne5 $146 {[%emt 0:01:30]} ({Predecessor:} 11. O-O Ne4 12. Ne5 Bxe5 13. dxe5 Nxc5 14. Bh6 Re8 15. g4 Be6 16. Be3 {0-1 (38) Miszczak,D (2120)-Dors,R (2239) Poland 2008}) 11... Qc8 {[%emt 0:02:30]} 12. g4 {[%emt 0:01:30]} Be6 {[%emt 0:01:30]} 13. Qa4 {[%emt 0:03:30] [#]} (13. Nd3 $11) 13... Bd7 {[%emt 0:03:30]} (13... Ne4 $1 $17 14. Nxe4 (14. Nxc6 Nxc3 15. Nxe7+ Kh8 $17) 14... dxe4) 14. f3 {[%emt 0:03:30]} Rd8 {[%emt 0:03:30]} 15. Bf4 {[%emt 0:05:30]} Ne8 {[%emt 0:07:30]} 16. O-O-O {[%emt 0:02:30]} f6 {[%emt 0:00:00]} 17. Nd3 {[%emt 0:01:30]} Nc7 {[%emt 0:03:00]} 18. Rde1 {[%emt 0:02:30]} Re8 {[%emt 0:01:30]} 19. h4 {[%emt 0:02:30]} Qb7 {[%emt 0:10:30]} 20. Re2 {[%emt 0:04:30]} Ne6 {[%emt 0:00:30]} 21. Be3 {[%emt 0:01:30]} Nxd4 $18 {[%emt 0:02:30]} (21... Rab8 $11 {and Black has nothing to worry.}) 22. Qxd4 {[%emt 0:12:30]} e5 {[%emt 0:01:30]} 23. Qb4 {[%emt 0:10:30]} Qxb4 {[%emt 0:01:30]} 24. Nxb4 {[%emt 0:00:00]} d4 {[%emt 0:02:30]} 25. Rd1 {[%emt 0:00:00]} a5 {[%emt 0:00:30]} 26. Nc2 {[%emt 0:00:30]} Be6 {[%emt 0:00:30]} 27. Bxd4 {[%emt 0:00:30]} exd4 {[%emt 0:00:30]} 28. Nxd4 {[%emt 0:00:30]} Bd7 {[%emt 0:00:30]} 29. Na4 {[%emt 0:00:30]} Rxe2 {[%emt 0:00:30]} 30. Nxe2 {[%emt 0:00:30]} Be6 {[%emt 0:00:30]} 31. Nb6 {[%emt 0:00:30]} Re8 {[%emt 0:00:30]} 32. Nc3 {[%emt 0:00:30]} f5 {[%emt 0:00:30]} 33. g5 {[%emt 0:00:30]} Bxc3 {[%emt 0:00:30]} 34. bxc3 {[%emt 0:00:30]} Bxa2 {[%emt 0:00:30]} 35. c4 {[%emt 0:00:30]} Bb3 {[%emt 0:00:30]} 36. Rd6 {[%emt 0:00:30]} a4 {[%emt 0:00:30]} 37. Kb2 {[%emt 0:00:30]} Re2+ {[%emt 0:00:30]} 38. Ka3 {[%emt 0:00:30]} Re3 {[%emt 0:00:30]} 39. Kb4 {[%emt 0:00:30]} Bc2 {[%emt 0:00:30]} 40. Rd2 {[%emt 0:00:30]} Bb3 {[%emt 0:00:30]} 41. Nxa4 {[%emt 0:00:30]} Bxa4 {[%emt 0:00:30]} 42. Kxa4 {[%emt 0:00:30]} Rxf3 {[%emt 0:00:30]} 43. Rd6 {[%emt 0:00:30]} Rf4 {[%emt 0:00:30]} 44. Kb4 {[%emt 0:00:30]} Rxh4 {[%emt 0:00:30]} 45. Rxc6 {[%emt 0:00:30]} f4 {[%emt 0:00:30]} 46. Rf6 {[%emt 0:00:30]} Rg4 {[%emt 0:00:30]} 47. c6 {[%emt 0:00:30]} 1-0

[Event "7th Ali Ipek Memorial 2019"]
[Site "Ankara"]
[Date "2019.03.10"]
[Round "7.6"]
[White "Bingologlu, Furkan"]
[Black "Ercan, Mehmet Fahri"]
[Result "0-1"]
[ECO "C67"]
[WhiteElo "1578"]
[BlackElo "1932"]
[Annotator "NA"]
[PlyCount "155"]
[EventDate "2019.03.06"]
[EventType "swiss"]
[EventCountry "TUR"]
[SourceTitle "playchess.com"]
[Source "ChessBase"]
[SourceQuality "1"]
[TimeControl "5400+30"]

1. e4 {[%emt 0:00:30]} e5 {[%emt 0:08:30]} 2. Nf3 {[%emt 0:00:30]} Nc6 {[%emt 0:00:30]} 3. Bb5 {[%emt 0:00:00]} Nf6 {[%emt 0:00:00]} 4. O-O {[%emt 0:01:00]} Nxe4 {[%emt 0:03:00]} 5. Re1 {[%emt 0:01:30]} Nd6 {[%emt 0:01:30]} 6. Nxe5 {[%emt 0:01:30]} Be7 {[%emt 0:01:30]} 7. Bf1 {[%emt 0:01:30]} Nf5 {[%emt 0:03:30]} 8. Nf3 {[%emt 0:06:30]} O-O {[%emt 0:01:30]} 9. d4 {[%emt 0:00:30]} d5 {[%emt 0:00:30]} 10. Bf4 {[%emt 0:04:30]} Bf6 {[%emt 0:01:30]} 11. c3 $1 {[%emt 0:02:30]} h6 {[%emt 0:03:30]} 12. Bd3 {[%emt 0:03:30]} Be6 {[%emt 0:03:30]} 13. Qc2 {[%emt 0:02:30]} Qc8 {[%emt 0:04:30]} 14. Na3 {[%emt 0:09:30]} Nce7 {[%emt 0:03:30] [#]} (14... a6 $14) 15. Be5 {[%emt 0:05:30]} (15. Nb5 $1 $16) 15... Bxe5 {[%emt 0:04:30]} 16. Nxe5 {[%emt 0:00:30]} c6 {[%emt 0:01:30]} 17. Rad1 {[%emt 0:04:30]} g6 $14 {[%emt 0:04:30]} (17... f6 $11 18. Nf3 Qd7) 18. Nb1 {[%emt 0:03:30]} Kg7 {[%emt 0:00:30]} 19. Nd2 {[%emt 0:00:30]} f6 {[%emt 0:03:30]} 20. Nef3 {[%emt 0:02:30]} Qd7 {[%emt 0:04:30]} 21. Nf1 {[%emt 0:02:30]} Rae8 {[%emt 0:01:30]} 22. Re2 {[%emt 0:06:30]} Bf7 {[%emt 0:00:30]} 23. Rde1 {[%emt 0:00:30]} Nd6 {[%emt 0:00:30]} 24. Ng3 {[%emt 0:00:30]} h5 {[%emt 0:00:30]} 25. Nh4 {[%emt 0:00:30]} a6 {[%emt 0:00:30]} 26. h3 {[%emt 0:00:30]} Rh8 {[%emt 0:00:30]} 27. b3 {[%emt 0:00:30]} b5 {[%emt 0:00:30]} 28. Re3 {[%emt 0:00:30]} Rhf8 {[%emt 0:00:30]} 29. Qe2 {[%emt 0:00:30]} Ng8 {[%emt 0:00:30]} 30. Qc2 {[%emt 0:00:30]} Ne7 {[%emt 0:00:30]} 31. Qc1 {[%emt 0:00:30]} Qd8 {[%emt 0:00:30]} 32. Qa3 {[%emt 0:00:30]} a5 {[%emt 0:00:30]} 33. Kf1 {[%emt 0:00:30]} Qc7 {[%emt 0:00:30]} 34. Bb1 {[%emt 0:00:30]} Nec8 {[%emt 0:00:30]} 35. Qb2 {[%emt 0:00:30]} Rxe3 {[%emt 0:00:30]} 36. Rxe3 {[%emt 0:00:30]} Re8 {[%emt 0:00:30]} 37. Rxe8 {[%emt 0:00:30]} Bxe8 {[%emt 0:00:30]} 38. Qc2 {[%emt 0:00:30]} Ne7 {[%emt 0:00:30]} 39. Qd3 {[%emt 0:00:30]} f5 {[%emt 0:00:30]} 40. Nf3 {[%emt 0:00:30]} Ne4 {[%emt 0:00:30]} 41. Ne5 {[%emt 0:00:30]} Ng8 {[%emt 0:00:30]} 42. Nxe4 {[%emt 0:00:30]} dxe4 {[%emt 0:00:30]} 43. Qe3 {[%emt 0:00:30]} Qe7 {[%emt 0:00:30]} 44. f3 {[%emt 0:00:30]} exf3 {[%emt 0:00:30]} 45. Qxf3 {[%emt 0:00:30]} Qa3 {[%emt 0:00:30]} 46. Qe3 {[%emt 0:00:30]} Nf6 {[%emt 0:00:30]} 47. Nf3 {[%emt 0:00:30]} Bf7 {[%emt 0:00:30]} 48. Qd2 {[%emt 0:00:30]} Bd5 {[%emt 0:00:30]} 49. Kf2 {[%emt 0:00:30]} Be4 {[%emt 0:00:30]} 50. Bd3 {[%emt 0:00:30]} Bxd3 {[%emt 0:00:30]} 51. Qxd3 {[%emt 0:00:30]} Ne4+ {[%emt 0:00:30]} 52. Ke2 {[%emt 0:00:30]} Qb2+ {[%emt 0:00:30]} 53. Nd2 {[%emt 0:00:30]} Nxc3+ {[%emt 0:00:30]} 54. Kf3 {[%emt 0:00:30]} Nd5 {[%emt 0:00:30]} 55. a4 {[%emt 0:00:30]} b4 {[%emt 0:00:30]} 56. Kf2 {[%emt 0:00:30]} Qc3 {[%emt 0:00:30]} 57. Qe2 {[%emt 0:00:30]} Qxd4+ {[%emt 0:00:30]} 58. Ke1 {[%emt 0:00:30]} Qh4+ {[%emt 0:00:30]} 59. Kf1 {[%emt 0:00:30]} Qf4+ {[%emt 0:00:30]} 60. Kg1 {[%emt 0:00:30]} Qe3+ {[%emt 0:00:30]} 61. Qxe3 {[%emt 0:00:30]} Nxe3 {[%emt 0:00:30]} 62. Kf2 {[%emt 0:00:30]} Nd1+ {[%emt 0:00:30]} 63. Kf3 {[%emt 0:00:30]} Nb2 {[%emt 0:00:30]} 64. Ke3 {[%emt 0:00:30]} c5 {[%emt 0:00:30]} 65. Nf3 {[%emt 0:00:30]} c4 {[%emt 0:00:30]} 66. bxc4 {[%emt 0:00:30]} Nxc4+ {[%emt 0:00:30]} 67. Kd4 {[%emt 0:00:30]} Nb2 {[%emt 0:00:30]} 68. Ne5 {[%emt 0:00:30]} Nxa4 {[%emt 0:00:30]} 69. Kc4 {[%emt 0:00:30]} Nb2+ {[%emt 0:00:30]} 70. Kb5 {[%emt 0:00:30]} Nd1 {[%emt 0:00:30]} 71. Ka4 {[%emt 0:00:30]} Kf6 {[%emt 0:00:30]} 72. Nc4 {[%emt 0:00:30]} f4 {[%emt 0:00:30]} 73. Nxa5 {[%emt 0:00:30]} Ne3 {[%emt 0:00:30]} 74. Kxb4 {[%emt 0:00:30]} Nxg2 {[%emt 0:00:30]} 75. Kc3 {[%emt 0:00:30]} Kg5 {[%emt 0:00:30]} 76. Nc4 {[%emt 0:00:30]} Kh4 {[%emt 0:00:30]} 77. Ne5 {[%emt 0:00:30]} Kg3 {[%emt 0:00:30]} 78. Kd3 {[%emt 0:00:30]} 0-1

[Event "7th Ali Ipek Memorial 2019"]
[Site "Ankara"]
[Date "2019.03.10"]
[Round "7.7"]
[White "Hokka, Fatih"]
[Black "Coban, Eren Cinar"]
[Result "0-1"]
[ECO "B13"]
[WhiteElo "1573"]
[BlackElo "1693"]
[Annotator "NA"]
[PlyCount "80"]
[EventDate "2019.03.06"]
[EventType "swiss"]
[EventCountry "TUR"]
[SourceTitle "playchess.com"]
[Source "ChessBase"]
[SourceQuality "1"]
[TimeControl "5400+30"]

1. Nf3 {[%emt 0:00:30]} Nf6 {[%emt 0:00:30]} 2. d4 {[%emt 0:00:00]} d5 {[%emt 0:00:30]} 3. Bf4 {[%emt 0:00:00]} c5 {[%emt 0:00:00]} 4. e3 {[%emt 0:00:30]} cxd4 {[%emt 0:00:00]} 5. exd4 {[%emt 0:00:00]} Nc6 {[%emt 0:00:30]} 6. c3 {[%emt 0:00:00]} g6 {[%emt 0:00:30]} 7. h3 {[%emt 0:00:30]} Bg7 {[%emt 0:00:00]} 8. Bd3 {[%emt 0:01:30]} O-O {[%emt 0:01:00]} 9. O-O {[%emt 0:00:30]} Nh5 {[%emt 0:00:30]} 10. Bg5 {[%emt 0:01:30]} f6 {[%emt 0:01:30]} 11. Bd2 {[%emt 0:02:30]} e5 {[%emt 0:01:30]} 12. Bb5 {[%emt 0:05:30]} e4 {[%emt 0:03:30]} 13. Nh2 {[%emt 0:01:30]} f5 {[%emt 0:01:30]} 14. Be2 {[%emt 0:06:30]} f4 {[%emt 0:07:30]} 15. Bxh5 {[%emt 0:04:30]} gxh5 {[%emt 0:00:30]} 16. Qxh5 {[%emt 0:01:30]} Rf5 {[%emt 0:01:30]} 17. Qd1 {[%emt 0:10:30]} Qh4 {[%emt 0:03:30]} 18. f3 {[%emt 0:01:30]} e3 {[%emt 0:09:30]} 19. Be1 {[%emt 0:00:30]} Qe7 {[%emt 0:00:30]} 20. Qe2 {[%emt 0:00:30]} Rf7 {[%emt 0:04:30]} 21. Na3 {[%emt 0:04:30]} Bf5 {[%emt 0:01:30]} 22. Rd1 {[%emt 0:04:30]} h5 {[%emt 0:02:30]} 23. Kh1 {[%emt 0:01:30]} Bf6 {[%emt 0:02:30]} 24. Rg1 {[%emt 0:00:30]} Rg7 {[%emt 0:00:30]} 25. g4 {[%emt 0:09:30]} hxg4 {[%emt 0:11:30]} 26. Nxg4 {[%emt 0:02:30]} Bxg4 {[%emt 0:08:30]} 27. Rxg4 {[%emt 0:02:30]} Rxg4 {[%emt 0:01:30]} 28. hxg4 {[%emt 0:01:30]} Kg7 {[%emt 0:01:30]} 29. Nc2 {[%emt 0:04:30]} Rh8+ {[%emt 0:00:30]} 30. Kg1 {[%emt 0:01:30]} Kf8 {[%emt 0:02:30]} 31. Qg2 {[%emt 0:05:30]} Qh7 {[%emt 0:00:30]} 32. b3 {[%emt 0:03:30]} Ne7 33. c4 {[%emt 0:05:44]} Ng6 {[%emt 0:04:00]} 34. Bb4+ {[%emt 0:03:24]} Kf7 {[%emt 0:01:30]} 35. Ne1 {[%emt 0:03:12]} Bh4 {[%emt 0:07:30]} 36. Nd3 {[%emt 0:06:20]} Bg3 {[%emt 0:05:58]} 37. Kf1 {[%emt 0:04:57]} Qh1+ {[%emt 0:01:01]} 38. Qxh1 {[%emt 0:01:02]} Rxh1+ {[%emt 0:00:30]} 39. Ke2 {[%emt 0:00:30]} Rh2+ {[%emt 0:00:00]} 40. Kf1 {[%emt 0:00:00]} e2+ {[%emt 0:00:00]} 0-1